bitfinex-derivatives/quotes_BTCF0:USTF0_20250528
["timestamp","ask_amount","ask_price","bid_price","bid_amount"]
[1748427591225,0.3608,108290.0,108280.0,0.1846331]
[1748427591421,0.3608992,108290.0,108280.0,0.51731966]
[1748427591627,0.3608992,108290.0,108280.0,0.38302638]
[1748427591933,0.3608992,108290.0,108280.0,0.38314638]
[1748427592219,0.3608992,108290.0,108280.0,1.29738766]
[1748427592612,0.3608992,108290.0,108280.0,1.54738766]
[1748427592814,0.3618992,108290.0,108280.0,1.54738766]
[1748427593026,0.00013818,108300.0,108290.0,0.184616]
[1748427593323,8e-08,108300.0,108290.0,0.957916]
[1748427593524,0.3608,108320.0,108290.0,0.99796361]
[1748427593829,0.5453649,108320.0,108310.0,1.6845819]
[1748427594124,0.78156752,108320.0,108310.0,1.8199871]
[1748427594315,0.96613242,108320.0,108310.0,1.8511871]
[1748427594510,0.78156752,108320.0,108310.0,1.8823871]
[1748427594728,0.75086752,108320.0,108310.0,1.8823871]
[1748427594927,0.75086752,108320.0,108310.0,1.74809382]
[1748427594928,0.72056752,108320.0,108310.0,1.74809382]
[1748427595121,0.72256752,108320.0,108310.0,1.74909382]
[1748427595524,0.72256752,108320.0,108310.0,1.84141781]
[1748427596023,0.36176752,108320.0,108310.0,1.74909382]
[1748427596226,0.36276752,108320.0,108310.0,2.34509382]
[1748427598625,0.36276752,108320.0,108310.0,0.84509382]
[1748427599133,0.36276752,108320.0,108310.0,2.34509382]
[1748427599722,0.00307944,108320.0,108310.0,2.57171109]
[1748427599923,0.00307944,108320.0,108310.0,2.67869775]
[1748427600122,4e-08,108320.0,108310.0,3.38949775]
[1748427600828,0.00046818,108330.0,108320.0,0.1845648]
[1748427601130,0.00054661,108330.0,108320.0,0.48227415]
[1748427601326,0.00054661,108330.0,108320.0,0.44029687]
[1748427601730,1e-08,108330.0,108320.0,0.67459015]
[1748427601923,1e-08,108330.0,108320.0,0.92459015]
[1748427602921,1e-08,108330.0,108320.0,1.28539015]
[1748427603329,0.00013818,108340.0,108330.0,0.1845485]
[1748427603533,0.00013818,108340.0,108330.0,1.0880617]
[1748427603726,0.00013818,108340.0,108330.0,1.19481915]
[1748427604234,0.00019022,108340.0,108330.0,0.69972587]
[1748427604535,0.4952835,108340.0,108330.0,0.85202042]
[1748427604721,0.5585835,108340.0,108330.0,2.35202042]
[1748427604921,0.5595835,108340.0,108330.0,2.35490042]
[1748427605124,0.7441149,108340.0,108330.0,1.50423192]
[1748427605437,1.1049149,108340.0,108330.0,0.00411192]
[1748427605640,1.1049149,108340.0,108330.0,0.79058032]
[1748427605938,0.97162162,108340.0,108330.0,2.10803192]
[1748427606127,1.1059149,108340.0,108330.0,2.10815192]
[1748427606328,1.1059149,108340.0,108330.0,2.29270032]
[1748427606927,0.97162162,108340.0,108330.0,2.29270032]
[1748427607226,0.97162162,108340.0,108330.0,2.35490032]
[1748427607227,0.97062162,108340.0,108330.0,2.35490032]
[1748427607539,0.75459022,108340.0,108330.0,2.35490032]
[1748427607729,0.72379022,108340.0,108330.0,2.35490032]
[1748427607929,0.72379022,108340.0,108330.0,1.75298032]
[1748427608126,0.72379022,108340.0,108330.0,2.36026032]
[1748427608328,0.00219022,108340.0,108330.0,2.36026032]
[1748427608526,0.00219022,108340.0,108330.0,1.9795816]
[1748427608832,0.00019022,108340.0,108330.0,3.39770923]
[1748427609622,0.3608,108360.0,108350.0,0.1845142]
[1748427609829,0.3608,108360.0,108350.0,0.7921142]
[1748427610036,0.3608,108360.0,108350.0,1.05293034]
[1748427610237,0.3608,108360.0,108350.0,2.55330098]
[1748427610537,0.3608,108360.0,108350.0,1.98221298]
[1748427610732,0.3608,108360.0,108350.0,2.35866612]
[1748427610933,0.65773948,108370.0,108360.0,0.1844972]
[1748427611129,0.78793818,108370.0,108360.0,0.25060912]
[1748427611325,1.10671156,108370.0,108360.0,0.48039192]
[1748427611538,1.10671156,108370.0,108360.0,0.66500912]
[1748427611835,1.10671156,108370.0,108360.0,0.79392912]
[1748427612043,1.10671156,108370.0,108360.0,0.86022912]
[1748427612044,0.97541828,108370.0,108360.0,0.86022912]
[1748427612426,0.97541828,108370.0,108360.0,0.86010912]
[1748427612627,0.97341828,108370.0,108360.0,0.85922912]
[1748427613445,1.10771156,108370.0,108360.0,0.13003192]
[1748427613639,1.10771156,108370.0,108360.0,0.60875192]
[1748427613831,1.10771156,108370.0,108360.0,0.60863192]
[1748427614136,1.10771156,108370.0,108360.0,0.60875192]
[1748427614838,1.10771156,108370.0,108360.0,0.13003192]
[1748427615033,1.10771156,108370.0,108360.0,0.60855192]
[1748427615234,1.10771156,108370.0,108360.0,0.60859192]
[1748427615535,1.15715213,108370.0,108360.0,0.79308912]
[1748427615734,1.15715213,108370.0,108360.0,0.60859192]
[1748427616643,1.15719883,108370.0,108360.0,0.60859192]
[1748427617239,1.15719883,108370.0,108360.0,0.60803192]
[1748427617535,1.15719883,108370.0,108360.0,0.79252912]
[1748427618037,1.15719883,108370.0,108360.0,2.29252912]
[1748427618226,1.15719883,108370.0,108360.0,2.29252922]
[1748427618429,1.15719883,108370.0,108360.0,2.16312922]
[1748427618637,1.15719883,108370.0,108360.0,0.18572922]
[1748427618835,1.15719883,108370.0,108360.0,0.00111192]
[1748427618836,1.19987905,108370.0,108360.0,0.00111192]
[1748427619142,1.19987905,108370.0,108360.0,0.00123192]
[1748427619345,1.19987905,108370.0,108340.0,0.32306358]
[1748427619346,0.1845143,108350.0,108340.0,0.00013818]
[1748427619536,1.04040758,108350.0,108340.0,0.47721818]
[1748427619844,1.01905995,108350.0,108340.0,2.16174948]
[1748427620143,0.78504823,108350.0,108340.0,2.29604276]
[1748427620342,0.78504823,108350.0,108340.0,2.35994276]
[1748427620639,0.78504823,108350.0,108340.0,2.36006276]
[1748427621236,0.96956253,108350.0,108340.0,2.22576948]
[1748427621437,0.96956253,108350.0,108340.0,2.22776948]
[1748427621838,0.97056253,108350.0,108340.0,2.23076948]
[1748427622446,0.97256253,108350.0,108340.0,2.22876948]
[1748427622646,0.97256253,108350.0,108340.0,2.22576948]
[1748427622947,0.78804823,108350.0,108340.0,2.22576948]
[1748427623439,0.36404823,108350.0,108340.0,2.22776948]
[1748427623635,0.00324823,108350.0,108340.0,2.22776948]
[1748427624143,0.00324823,108350.0,108340.0,2.36206276]
[1748427624451,0.00324823,108350.0,108340.0,2.45435876]
[1748427624644,0.00124823,108350.0,108340.0,2.36206276]
[1748427624846,0.00124823,108350.0,108340.0,0.86206276]
[1748427625445,0.00124823,108350.0,108340.0,2.36206276]
[1748427627353,3e-08,108350.0,108340.0,3.26598032]
[1748427629142,3e-08,108350.0,108340.0,3.01598032]
[1748427630550,3e-08,108350.0,108340.0,3.26598032]
[1748427631535,3e-08,108350.0,108340.0,3.34147335]
[1748427632346,3e-08,108350.0,108340.0,3.47948199]
[1748427632845,0.00013818,108370.0,108360.0,0.1844973]
[1748427633050,0.00013818,108370.0,108360.0,2.39005058]
[1748427633347,0.4255,108390.0,108380.0,0.1844632]
[1748427633538,0.4255,108390.0,108380.0,0.91859648]
[1748427633739,0.3927,108390.0,108380.0,1.08125173]
[1748427634751,0.3927,108390.0,108380.0,1.09507121]
[1748427635341,0.5771462,108390.0,108380.0,0.36293793]
[1748427635542,0.6071462,108390.0,108380.0,0.86464268]
[1748427635749,0.6081462,108390.0,108380.0,0.86764268]
[1748427635944,0.6081462,108390.0,108380.0,0.26860268]
[1748427636140,0.6081462,108390.0,108380.0,0.79744268]
[1748427636442,0.6081462,108390.0,108380.0,0.79732268]
[1748427636649,0.6081462,108390.0,108380.0,0.79740268]
[1748427637050,0.6081462,108390.0,108380.0,0.61293948]
[1748427637254,0.6081462,108390.0,108380.0,0.79740268]
[1748427638637,0.6081462,108390.0,108380.0,0.20340268]
[1748427638840,0.6081462,108390.0,108380.0,0.79648268]
[1748427639739,0.6081462,108390.0,108380.0,0.01893948]
[1748427640152,0.6081462,108390.0,108380.0,0.61137948]
[1748427640354,0.6081462,108390.0,108380.0,0.79584268]
[1748427642254,0.6081462,108390.0,108380.0,0.01893948]
[1748427642454,0.74243948,108390.0,108380.0,0.61037948]
[1748427642654,0.77373948,108390.0,108380.0,0.61053948]
[1748427642846,0.77373948,108390.0,108380.0,0.61041948]
[1748427643046,0.77373948,108390.0,108380.0,0.61053948]
[1748427644861,0.77373948,108390.0,108380.0,0.79500268]
[1748427650049,0.6394462,108390.0,108380.0,0.79500268]
[1748427650254,0.6394462,108390.0,108380.0,0.82520268]
[1748427650655,0.6394462,108390.0,108380.0,0.85660268]
[1748427651057,0.6081462,108390.0,108380.0,0.85660268]
[1748427652155,0.6081462,108390.0,108380.0,1.02315255]
[1748427653060,0.6081462,108390.0,108380.0,2.52315255]
[1748427654065,0.6081462,108390.0,108380.0,1.73360268]
[1748427654656,0.6081462,108390.0,108380.0,1.85760268]
[1748427655360,0.6081462,108390.0,108380.0,1.88870268]
[1748427655969,0.6081462,108390.0,108380.0,1.89129268]
[1748427657068,0.6081462,108390.0,108380.0,1.89153713]
[1748427660894,0.5781462,108390.0,108380.0,1.89153713]
[1748427661482,0.5781462,108390.0,108380.0,1.94092516]
[1748427661685,0.6101462,108390.0,108380.0,1.89153713]
[1748427662499,0.6101462,108390.0,108380.0,1.94092516]
[1748427666685,0.6101462,108390.0,108380.0,1.89153713]
[1748427666891,0.74443948,108390.0,108380.0,1.58307393]
[1748427667076,0.38363948,108390.0,108380.0,0.66051393]
[1748427667385,1.10523948,108390.0,108380.0,0.89424526]
[1748427667578,1.10523948,108390.0,108380.0,0.89436526]
[1748427667979,1.09350172,108390.0,108380.0,0.89436526]
[1748427668477,1.09350172,108390.0,108380.0,0.84453723]
[1748427669181,1.21605724,108390.0,108380.0,0.81323723]
[1748427669891,1.21605724,108390.0,108380.0,0.81303723]
[1748427670096,1.10499462,108390.0,108380.0,0.81303723]
[1748427672186,1.10499462,108390.0,108380.0,0.81219723]
[1748427673095,1.10499462,108390.0,108380.0,0.81191723]
[1748427675788,1.13539462,108390.0,108380.0,0.81191723]
[1748427675985,1.13539462,108390.0,108380.0,0.07116196]
[1748427676186,1.47765862,108390.0,108380.0,0.07116196]
[1748427676392,0.1844633,108380.0,108370.0,0.11737213]
[1748427676597,1.24368385,108380.0,108370.0,0.00013818]
[1748427676791,1.33595585,108380.0,108370.0,0.00013818]
[1748427676988,2.47574257,108380.0,108350.0,0.00138419]
[1748427677198,0.1845312,108340.0,108330.0,0.07686427]
[1748427677393,0.1845483,108330.0,108320.0,1.80117395]
[1748427677593,0.71229672,108330.0,108320.0,1.65074]
[1748427677906,0.71229672,108330.0,108310.0,0.03328782]
[1748427677907,0.1845653,108320.0,108310.0,0.03328782]
[1748427678225,0.71231372,108320.0,108310.0,0.70517022]
[1748427678503,0.71268436,108320.0,108310.0,2.20517022]
[1748427678692,0.71268436,108320.0,108310.0,2.20529022]
[1748427678888,0.71268436,108320.0,108310.0,1.50020782]
[1748427679297,0.71468436,108320.0,108310.0,1.50120782]
[1748427679498,0.71668436,108320.0,108310.0,1.5161963]
[1748427679706,0.71668436,108320.0,108310.0,1.5163163]
[1748427680200,0.61493594,108320.0,108310.0,1.5163163]
[1748427680401,0.74898436,108320.0,108310.0,1.7008986]
[1748427680594,0.61493594,108320.0,108310.0,1.7642986]
[1748427680789,0.61493594,108320.0,108310.0,0.2642986]
[1748427681293,0.36517064,108320.0,108310.0,1.89834702]
[1748427681492,0.54973594,108320.0,108310.0,1.89834702]
[1748427681692,0.54973594,108320.0,108310.0,1.7961986]
[1748427681896,0.54973594,108320.0,108310.0,2.3700786]
[1748427682297,0.36517064,108320.0,108310.0,2.3700786]
[1748427682993,0.54973594,108320.0,108310.0,2.3700786]
[1748427683398,0.36517064,108320.0,108310.0,2.3700786]
[1748427683609,0.54973594,108320.0,108310.0,2.3700786]
[1748427684394,0.36517064,108320.0,108310.0,2.3700786]
[1748427684792,0.54973594,108320.0,108310.0,1.9152786]
[1748427685100,0.54973594,108320.0,108310.0,2.50320702]
[1748427685400,0.36517064,108320.0,108310.0,2.50320702]
[1748427686103,0.00437064,108320.0,108310.0,2.50320702]
[1748427686397,0.00437064,108320.0,108310.0,1.19437523]
[1748427686604,0.00437064,108320.0,108310.0,1.06032681]
[1748427686909,0.00437064,108320.0,108310.0,2.69437523]
[1748427687201,0.00237064,108320.0,108310.0,2.69437523]
[1748427687790,0.36093818,108330.0,108320.0,0.1845652]
[1748427687988,0.36093818,108330.0,108320.0,0.38181362]
[1748427688192,0.36093818,108330.0,108320.0,0.57261357]
[1748427688896,0.364026,108330.0,108320.0,0.57361357]
[1748427689101,0.366026,108330.0,108320.0,0.67461357]
[1748427689596,0.005226,108330.0,108320.0,0.67461357]
[1748427689804,0.005226,108330.0,108320.0,0.70866199]
[1748427689989,0.003226,108330.0,108320.0,0.70766199]
[1748427690189,0.003226,108330.0,108320.0,1.16946199]
[1748427690796,0.004226,108330.0,108320.0,1.17146199]
[1748427690998,0.00037064,108340.0,108320.0,1.17146199]
[1748427690999,0.00037064,108340.0,108330.0,0.1845483]
[1748427691205,0.00037064,108340.0,108330.0,1.31119672]
[1748427691412,0.00037064,108340.0,108330.0,1.75751704]
[1748427692196,0.36093818,108350.0,108340.0,0.1845312]
[1748427692403,0.36056754,108350.0,108340.0,1.5593409]
[1748427692692,0.36056754,108350.0,108340.0,1.65734822]
[1748427692899,0.00013818,108350.0,108340.0,1.65734822]
[1748427693094,0.00013818,108350.0,108340.0,2.01814822]
[1748427693294,0.3608,108360.0,108350.0,0.1845142]
[1748427693502,0.3608,108370.0,108360.0,0.1844972]
[1748427693701,0.3608,108370.0,108360.0,0.38184562]
[1748427693908,0.3608,108370.0,108360.0,0.38221626]
[1748427694102,0.5452802,108370.0,108360.0,0.38221626]
[1748427694413,0.5452802,108370.0,108360.0,0.24816784]
[1748427694597,0.5777802,108370.0,108360.0,0.24816784]
[1748427695398,0.6099802,108370.0,108360.0,0.81476784]
[1748427697713,0.6099802,108370.0,108360.0,2.31476784]
[1748427700805,0.6099802,108370.0,108360.0,1.74916784]
[1748427701005,0.6099802,108370.0,108360.0,2.28238784]
[1748427701214,0.6099802,108370.0,108360.0,0.78238784]
[1748427701517,0.6099802,108370.0,108360.0,0.14857064]
[1748427701708,0.6099802,108370.0,108360.0,2.28250784]
[1748427702707,0.6099802,108370.0,108360.0,1.83306784]
[1748427703012,0.6099802,108370.0,108360.0,2.24946784]
[1748427703404,0.74402862,108370.0,108360.0,1.61597064]
[1748427703604,0.74402862,108370.0,108360.0,2.24934784]
[1748427703814,0.74402862,108370.0,108360.0,2.24922784]
[1748427704015,0.74402862,108370.0,108360.0,2.24934784]
[1748427704514,0.6099802,108370.0,108360.0,2.24934784]
[1748427705816,0.6425802,108370.0,108360.0,2.24934784]
[1748427706008,0.6425802,108370.0,108360.0,1.61597064]
[1748427706210,0.6425802,108370.0,108360.0,2.24874784]
[1748427707504,0.6425802,108370.0,108360.0,2.28044784]
[1748427707916,0.6425802,108370.0,108360.0,2.31144784]
[1748427708415,0.4581,108370.0,108360.0,2.31144784]
[1748427708808,0.4255,108370.0,108360.0,2.44549626]
[1748427709116,0.6099801,108370.0,108360.0,2.44549626]
[1748427709508,0.4255,108370.0,108360.0,2.31144784]
[1748427710016,0.4255,108370.0,108360.0,2.43400713]
[1748427714416,0.3933,108370.0,108360.0,1.35061001]
[1748427714603,0.3933,108370.0,108360.0,1.22227871]
[1748427714805,0.3933,108370.0,108360.0,0.98260903]
[1748427715113,0.3933,108370.0,108360.0,2.61094033]
[1748427715505,0.0325,108370.0,108360.0,2.48260903]
[1748427715910,0.3933,108370.0,108360.0,2.59073845]
[1748427716217,0.39308994,108380.0,108370.0,0.1844801]
[1748427716410,0.78658994,108380.0,108370.0,0.37161003]
[1748427716715,0.78658994,108380.0,108370.0,0.42029085]
[1748427717319,0.78858994,108380.0,108370.0,0.42129085]
[1748427717516,0.78858994,108380.0,108370.0,0.37261003]
[1748427718417,0.78958994,108380.0,108370.0,0.37261003]
[1748427718607,0.78958994,108380.0,108370.0,0.42129085]
[1748427719217,0.75738994,108380.0,108370.0,0.42129085]
[1748427719417,0.72468994,108380.0,108370.0,0.42129085]
[1748427720215,0.72468994,108380.0,108370.0,0.37261003]
[1748427720405,0.72468994,108380.0,108370.0,1.87261003]
[1748427720611,0.72468994,108380.0,108370.0,1.88617469]
[1748427722222,0.72268994,108380.0,108370.0,1.88517469]
[1748427722410,0.72368994,108380.0,108370.0,1.88517469]
[1748427722610,0.72268994,108380.0,108370.0,1.88617469]
[1748427723009,0.90715304,108380.0,108370.0,1.7636154]
[1748427723212,0.96925304,108380.0,108370.0,2.2078154]
[1748427723726,0.96925304,108380.0,108370.0,2.2079354]
[1748427725521,0.96925304,108380.0,108370.0,2.20830604]
[1748427726117,0.96925304,108380.0,108370.0,2.33086533]
[1748427727927,0.78478994,108380.0,108370.0,2.33086533]
[1748427730320,0.75408994,108380.0,108370.0,2.33086533]
[1748427730812,0.72268994,108380.0,108370.0,2.33086533]
[1748427731213,0.75828994,108380.0,108370.0,2.33086533]
[1748427732024,0.78878994,108380.0,108370.0,2.33086533]
[1748427732322,0.78878994,108380.0,108370.0,2.32886533]
[1748427733024,0.78878994,108380.0,108370.0,2.20630604]
[1748427733322,0.97325314,108380.0,108370.0,2.20630604]
[1748427735116,0.78878994,108380.0,108370.0,2.20630604]
[1748427735623,0.78878994,108380.0,108370.0,2.32886533]
[1748427737421,0.97325304,108380.0,108370.0,2.32830533]
[1748427737923,0.78878994,108380.0,108370.0,2.32830533]
[1748427739726,0.97325314,108380.0,108370.0,2.32830533]
[1748427740224,0.78878994,108380.0,108370.0,2.32830533]
[1748427740922,0.97325314,108380.0,108370.0,2.20574604]
[1748427741127,1.09581243,108380.0,108370.0,2.25182604]
[1748427741322,1.09581243,108380.0,108370.0,1.81006604]
[1748427741522,1.09581243,108380.0,108370.0,2.25182604]
[1748427741827,1.09581243,108380.0,108370.0,2.25170604]
[1748427742026,1.09581243,108380.0,108370.0,2.25182604]
[1748427744227,1.09581243,108380.0,108370.0,0.75182604]
[1748427744632,1.09581243,108380.0,108370.0,2.25182604]
[1748427744831,1.09581243,108380.0,108370.0,1.81018604]
[1748427745031,1.09581243,108380.0,108370.0,2.25178604]
[1748427745832,1.09581243,108380.0,108370.0,1.81018604]
[1748427746031,1.09581243,108380.0,108370.0,2.25178604]
[1748427748534,0.97325314,108380.0,108370.0,2.25178604]
[1748427748734,0.97325314,108380.0,108370.0,2.28678604]
[1748427748935,0.97325314,108380.0,108370.0,2.32308604]
[1748427753437,0.72268994,108380.0,108370.0,2.44564533]
[1748427753633,0.72268994,108380.0,108370.0,0.94564533]
[1748427754137,0.72268994,108380.0,108370.0,2.44564533]
[1748427755534,0.72268994,108380.0,108370.0,2.55126165]
[1748427755732,0.3608,108390.0,108380.0,0.1844632]
[1748427756037,0.3608,108390.0,108380.0,2.11142945]
[1748427756038,0.3472119,108390.0,108380.0,2.11142945]
[1748427756331,0.4608,108400.0,108380.0,2.14952554]
[1748427756532,0.1,108400.0,108390.0,0.50133532]
[1748427756932,0.1,108400.0,108390.0,0.69739322]
[1748427757726,0.1,108400.0,108390.0,0.69939322]
[1748427757927,0.1,108400.0,108390.0,0.70039322]
[1748427758432,0.1,108400.0,108390.0,0.70076386]
[1748427759338,0.1,108400.0,108390.0,0.70086053]
[1748427759541,0.1,108400.0,108390.0,2.20086053]
[1748427765544,0.1,108400.0,108390.0,2.10860453]
[1748427765936,0.1,108400.0,108390.0,2.66166053]
[1748427767445,0.1,108400.0,108390.0,2.31654195]
[1748427767742,0.1,108400.0,108390.0,2.22428595]
[1748427767943,0.1,108400.0,108390.0,2.46940453]
[1748427772443,0.1,108400.0,108390.0,2.10860453]
[1748427772647,0.1,108400.0,108390.0,1.86348595]
[1748427772844,0.1,108400.0,108390.0,2.10860453]
[1748427778646,0.1,108400.0,108390.0,2.46940453]
[1748427780852,0.1,108400.0,108390.0,1.86348595]
[1748427781054,0.1338,108400.0,108390.0,2.10860453]
[1748427785455,0.1686,108400.0,108390.0,2.10860453]
[1748427785751,0.1686,108400.0,108390.0,2.41280595]
[1748427785945,0.1686,108400.0,108390.0,2.53736524]
[1748427786963,0.1686,108400.0,108390.0,2.65992453]
[1748427787747,0.1,108400.0,108390.0,2.65992453]
[1748427787946,0.1,108400.0,108390.0,3.02072453]
[1748427788854,0.1,108400.0,108390.0,3.12072453]
[1748427789253,0.0761705,108400.0,108390.0,3.12072453]
[1748427789453,0.3608,108430.0,108420.0,0.1843952]
[1748427789665,0.39096933,108430.0,108420.0,2.02518088]
[1748427789854,0.39096933,108430.0,108420.0,2.19796359]
[1748427790054,0.39096933,108430.0,108420.0,3.69796359]
[1748427790656,0.39096933,108430.0,108420.0,3.73446359]
[1748427790958,0.39296933,108430.0,108420.0,3.73446359]
[1748427791161,0.0354,108430.0,108420.0,3.73446359]
[1748427791356,0.0354,108430.0,108420.0,3.73483423]
[1748427791752,0.0334,108430.0,108420.0,3.73483423]
[1748427791953,0.0354,108430.0,108420.0,3.73583423]
[1748427792664,0.0334,108430.0,108420.0,3.73583423]
[1748427792961,0.0334,108430.0,108420.0,3.73683423]
[1748427793161,0.0678,108430.0,108420.0,3.73683423]
[1748427794865,0.3608,108440.0,108430.0,0.1843781]
[1748427795069,0.3961,108440.0,108430.0,0.34118562]
[1748427795267,0.3961,108440.0,108430.0,0.34155626]
[1748427795463,0.3961,108440.0,108430.0,0.34167626]
[1748427795668,0.3961,108440.0,108430.0,1.85522973]
[1748427796470,0.4291,108440.0,108430.0,1.85522973]
[1748427796869,0.4321,108440.0,108430.0,1.85522973]
[1748427797572,0.4321,108440.0,108430.0,1.89122973]
[1748427797763,0.4321,108440.0,108430.0,1.99604254]
[1748427800378,0.003,108440.0,108430.0,1.99604254]
[1748427800577,0.003,108440.0,108430.0,0.46130367]
[1748427800776,0.0369,108440.0,108430.0,0.46130367]
[1748427801477,0.0369,108440.0,108430.0,1.96130367]
[1748427801677,0.0359,108440.0,108430.0,1.96330367]
[1748427801883,0.0359,108440.0,108430.0,2.32410367]
[1748427802182,0.0339,108440.0,108430.0,2.32610367]
[1748427803777,0.0339,108440.0,108430.0,2.35990367]
[1748427805287,0.4318,108450.0,108440.0,0.1843613]
[1748427805488,0.4652,108450.0,108440.0,0.92454059]
[1748427805680,0.4652,108450.0,108440.0,1.05711447]
[1748427806889,0.4289,108450.0,108440.0,1.05811447]
[1748427807090,0.4289,108450.0,108440.0,2.55811447]
[1748427807894,0.0334,108450.0,108440.0,2.91891447]
[1748427808079,0.0334,108450.0,108440.0,3.01891447]
[1748427809095,0.394,108470.0,108460.0,0.1843273]
[1748427809389,0.394,108470.0,108460.0,1.90092659]
[1748427809597,0.394,108470.0,108460.0,1.93702659]
[1748427809786,0.4302,108470.0,108460.0,3.54758923]
[1748427809986,0.4302,108470.0,108460.0,3.56919148]
[1748427810188,0.0724,108470.0,108460.0,3.56919148]
[1748427810391,0.0744,108470.0,108460.0,3.74717095]
[1748427810901,0.005,108470.0,108460.0,3.74717095]
[1748427811095,0.005,108470.0,108460.0,3.65284781]
[1748427811288,0.0398,108470.0,108460.0,3.81874589]
[1748427811489,0.0398,108470.0,108460.0,3.94795971]
[1748427811686,0.005,108470.0,108460.0,3.94795971]
[1748427812600,0.005,108470.0,108460.0,3.78206163]
[1748427812896,0.005,108470.0,108460.0,4.14286163]
[1748427813104,0.005,108470.0,108460.0,4.24286163]
[1748427813797,0.005,108470.0,108460.0,4.35183442]
[1748427814805,0.005,108470.0,108460.0,2.85167442]
[1748427815000,0.0679,108480.0,108470.0,0.30686949]
[1748427815201,0.0679,108480.0,108470.0,1.92642582]
[1748427815398,0.0679,108480.0,108470.0,2.15915285]
[1748427815602,0.0679,108480.0,108470.0,2.11039652]
[1748427816006,0.0679,108480.0,108470.0,1.9811827]
[1748427816304,0.0719,108480.0,108470.0,1.9811827]
[1748427816496,0.0719,108480.0,108470.0,2.15960254]
[1748427816497,0.0749,108480.0,108470.0,2.15960254]
[1748427817103,0.0749,108480.0,108470.0,2.00084325]
[1748427817412,0.84649988,108480.0,108470.0,0.12546865]
[1748427817597,1.3229813,108480.0,108470.0,0.01406865]
[1748427817905,0.1843103,108470.0,108460.0,0.10792]
[1748427818204,0.74826342,108470.0,108460.0,0.10792]
[1748427818408,1.09045942,108470.0,108460.0,0.10804]
[1748427819502,1.09345942,108470.0,108460.0,0.10804]
[1748427819707,1.09345942,108470.0,108450.0,0.10805818]
[1748427819708,0.1843271,108460.0,108450.0,0.10805818]
[1748427820004,0.1843271,108460.0,108450.0,0.10817818]
[1748427820005,0.91568639,108460.0,108450.0,0.10817818]
[1748427820194,1.05389317,108460.0,108450.0,0.00025818]
[1748427820397,1.05389317,108460.0,108450.0,0.00013818]
[1748427820594,1.05389317,108460.0,108450.0,0.00025818]
[1748427820801,1.07559317,108460.0,108450.0,0.00025818]
[1748427820995,1.02959039,108460.0,108450.0,0.00025818]
[1748427821708,1.15214968,108460.0,108450.0,0.00025818]
[1748427822004,1.075596,108460.0,108450.0,0.00013818]
[1748427822210,1.075596,108460.0,108450.0,0.00025818]
[1748427822398,1.080596,108460.0,108450.0,0.00125818]
[1748427822597,1.080596,108460.0,108450.0,0.00150641]
[1748427822804,1.084596,108460.0,108450.0,0.00150641]
[1748427823102,1.118396,108460.0,108450.0,0.00150641]
[1748427823297,1.07239039,108460.0,108450.0,0.00150641]
[1748427823608,1.1183924,108460.0,108450.0,0.00150641]
[1748427824408,0.1843612,108440.0,108430.0,0.04854924]
[1748427824714,0.9059612,108440.0,108430.0,0.48887238]
[1748427824899,1.08402049,108440.0,108430.0,0.44032]
[1748427825106,1.08402049,108440.0,108430.0,0.44044]
[1748427825703,1.08402049,108440.0,108430.0,0.6609182]
[1748427825907,1.08602049,108440.0,108430.0,0.47654]
[1748427826109,0.9654612,108440.0,108430.0,0.6954182]
[1748427826409,0.7811,108440.0,108430.0,0.81797749]
[1748427826594,0.9654612,108440.0,108430.0,0.85477749]
[1748427826799,0.7256,108440.0,108430.0,0.96269749]
[1748427827195,0.7256,108440.0,108430.0,1.11169834]
[1748427827705,0.7256,108440.0,108430.0,1.21169834]
[1748427827913,0.00362935,108440.0,108430.0,2.84616263]
[1748427828210,0.3608,108460.0,108450.0,0.1843442]
[1748427828410,0.3608,108460.0,108450.0,1.02390169]
[1748427828611,0.3051,108460.0,108450.0,1.08414856]
[1748427828800,0.3608,108470.0,108460.0,0.1843272]
[1748427829000,0.3608,108470.0,108460.0,0.35310513]
[1748427829207,0.3608,108480.0,108470.0,0.1843102]
[1748427829407,0.3608,108480.0,108470.0,0.90128813]
[1748427829913,0.3608,108480.0,108470.0,1.01821273]
[1748427830415,0.7183048,108490.0,108480.0,0.1842932]
[1748427830604,0.3608,108490.0,108480.0,0.36424054]
[1748427830807,0.5450762,108490.0,108480.0,0.36424054]
[1748427831007,0.3608,108490.0,108480.0,0.36424054]
[1748427831202,0.3608,108490.0,108470.0,0.00013818]
[1748427831203,0.9288533,108490.0,108470.0,0.00013818]
[1748427831403,0.7493219,108480.0,108470.0,0.00013818]
[1748427831707,0.6175932,108480.0,108470.0,0.00025818]
[1748427832028,0.7077812,108480.0,108470.0,0.00013818]
[1748427832215,0.7077812,108480.0,108470.0,0.00025818]
[1748427832405,0.7097812,108480.0,108470.0,0.00025818]
[1748427832814,0.7117812,108480.0,108470.0,0.00025818]
[1748427833413,0.6195932,108480.0,108470.0,0.00025818]
[1748427834217,0.6195932,108480.0,108470.0,0.44041818]
[1748427834618,0.6195932,108480.0,108470.0,0.00025818]
[1748427834918,0.6195932,108480.0,108470.0,0.58269818]
[1748427836118,0.6195932,108480.0,108470.0,0.76700838]
[1748427836313,0.6195932,108480.0,108470.0,0.81369838]
[1748427836715,0.6195932,108480.0,108470.0,0.76700838]
[1748427837116,0.6195932,108480.0,108470.0,0.58269818]
[1748427837315,0.6195932,108480.0,108470.0,0.76700838]
[1748427837612,0.6195932,108480.0,108470.0,0.59513471]
[1748427837813,0.7533219,108480.0,108470.0,0.59513471]
[1748427838118,0.80050643,108480.0,108470.0,0.04713471]
[1748427838318,0.80050643,108480.0,108470.0,0.00013818]
[1748427838319,1.14269443,108480.0,108470.0,0.00013818]
[1748427838520,1.14269443,108480.0,108470.0,0.00025818]
[1748427838816,1.00896573,108480.0,108470.0,0.00013818]
[1748427839020,1.18588717,108480.0,108470.0,0.00025818]
[1748427839219,1.14269443,108480.0,108470.0,0.00025818]
[1748427840111,0.8455099,108480.0,108470.0,0.00025818]
[1748427840315,0.89268857,108480.0,108470.0,0.00025818]
[1748427841115,0.80050057,108480.0,108470.0,0.00025818]
[1748427841513,0.66677187,108480.0,108470.0,0.00025818]
[1748427841712,0.66677187,108480.0,108470.0,0.04714366]
[1748427841913,0.66677187,108480.0,108470.0,0.07175818]
[1748427842224,0.6195932,108480.0,108470.0,0.03535818]
[1748427843021,0.66676976,108480.0,108470.0,0.03535818]
[1748427843528,1.27641516,108480.0,108470.0,8e-08]
[1748427843827,0.1843272,108460.0,108450.0,0.80831092]
[1748427844008,0.95310376,108460.0,108450.0,0.70063092]
[1748427844328,1.02300376,108460.0,108450.0,0.6607042]
[1748427844521,1.02300376,108460.0,108450.0,0.6970042]
[1748427844819,1.02300376,108460.0,108450.0,0.6971242]
[1748427845225,1.02300848,108460.0,108450.0,0.6971242]
[1748427847311,0.9758272,108460.0,108450.0,0.6971242]